lending/lending_fUSD_20240824
["ID","MTS","AMOUNT","RATE_DAILY","PERIOD"]
[335715866,1724460650364,-4249.16,0.00010999,2]
[335715868,1724460650373,-7055.15,0.00010999,2]
[335715870,1724460650382,-4249.16,0.00010999,2]
[335715872,1724460650391,-4249.16,0.00010999,2]
[335715874,1724460650400,-7055.15,0.00010999,2]
[335715876,1724460650409,-1056.87,0.00010999,2]
[335715877,1724460650418,-4249.16,0.00010999,2]
[335715879,1724460650428,-7055.15,0.00010999,2]
[335715881,1724460650437,-1056.87,0.00010999,2]
[335715883,1724460650446,-7055.15,0.00010999,2]
[335715885,1724460650456,-4249.1902427,0.00010999,2]
[335715887,1724460650465,-1056.87,0.00010999,2]
[335715889,1724460650475,-7055.15,0.00010999,2]
[335715891,1724460650484,-1056.87,0.00010999,2]
[335715893,1724460650493,-2001.00183695,0.00010999,2]
[335715913,1724460650698,-5054.14816305,0.00010999,2]
[335715915,1724460650708,-151.0,0.00010999,2]
[335715917,1724460650717,-1056.87,0.00010999,2]
[335715919,1724460650726,-7055.15,0.00010999,2]
[335715921,1724460650735,-1056.87,0.00010999,2]
[335715923,1724460650745,-7055.15,0.00010999,2]
[335715925,1724460650754,-1056.87,0.00010999,2]
[335715927,1724460650763,-7055.35,0.00010999,2]
[335715929,1724460650772,-1056.87,0.00010999,2]
[335715931,1724460650782,-782.75582474,0.00010999,2]
[335715934,1724460650794,-274.11417526,0.00010999,2]
[335715936,1724460650804,-1057.05,0.00010999,2]
[335715938,1724460650813,-3676.98,0.00010999,2]
[335715940,1724460650823,-3676.98,0.00010999,2]
[335715942,1724460650832,-3676.98,0.00010999,2]
[335715944,1724460650841,-3676.98,0.00010999,2]
[335715946,1724460650850,-2374.0,0.00010999,2]
[335715948,1724460650859,-1633.80230049,0.00010999,2]
[335715950,1724460650875,-522.95955266,0.00010999,2]
[335715952,1724460650886,-1520.21814685,0.00010999,2]
[335715954,1724460650896,-2374.0,0.00010999,2]
[335715956,1724460650905,-3676.98,0.00010999,2]
[335715958,1724460650915,-2374.0,0.00010999,2]
[335715960,1724460650924,-3676.98,0.00010999,2]
[335715962,1724460650933,-2374.0,0.00010999,2]
[335715964,1724460650942,-3676.98,0.00010999,2]
[335715966,1724460650952,-2374.0,0.00010999,2]
[335715968,1724460650963,-3676.98,0.00010999,2]
[335715970,1724460650972,-2374.0,0.00010999,2]
[335715972,1724460650981,-3677.02504743,0.00010999,2]
[335715974,1724460650991,-2374.0,0.00010999,2]
[335715976,1724460651000,-2374.0,0.00010999,2]
[335715978,1724460651009,-2374.0,0.00010999,2]
[335715980,1724460651018,-2374.2,0.00010999,2]
[335715982,1724460651027,-1384.29,0.00010999,2]
[335715983,1724460651036,-1384.29,0.00010999,2]
[335715986,1724460651047,-1384.29,0.00010999,2]
[335715987,1724460651056,-1384.29,0.00010999,2]
[335715989,1724460651065,-1384.29,0.00010999,2]
[335715991,1724460651074,-1384.29,0.00010999,2]
[335715993,1724460651084,-1384.29,0.00010999,2]
[335715995,1724460651093,-1384.29,0.00010999,2]
[335715996,1724460651103,-1384.29,0.00010999,2]
[335715998,1724460651112,-1384.49,0.00010999,2]
[335716000,1724460651122,-2937.4,0.00010999,2]
[335716002,1724460651131,-2937.4,0.00010999,2]
[335716004,1724460651141,-210.191033,0.00010999,2]
[335716006,1724460651153,-687.02079224,0.00010999,2]
[335716008,1724460651164,-435.35854429,0.00010999,2]
[335716010,1724460651176,-664.7658,0.00010999,2]
[335716018,1724460651244,-333.79050053,0.00010897,2]
[335716020,1724460651253,-940.06383047,0.00010999,2]
[335716022,1724460651262,-2937.4,0.00010999,2]
[335716024,1724460651271,-2937.4,0.00010999,2]
[335716026,1724460651280,-2297.96,0.00010999,2]
[335716028,1724460651288,-2937.4,0.00010999,2]
[335716030,1724460651298,-2297.96,0.00010999,2]
[335716031,1724460651307,-2937.4,0.00010999,2]
[335716033,1724460651316,-2297.96,0.00010999,2]
[335716035,1724460651325,-2937.4,0.00010999,2]
[335716037,1724460651334,-2297.96,0.00010999,2]
[335716039,1724460651343,-2937.4,0.00010999,2]
[335716041,1724460651352,-178.33,0.00010999,2]
[335716043,1724460651361,-2297.96,0.00010999,2]
[335716045,1724460651370,-2297.96,0.00010999,2]
[335716047,1724460651379,-2297.96,0.00010999,2]
[335716049,1724460651387,-2937.41207843,0.00010999,2]
[335716051,1724460651397,-2297.96,0.00010999,2]
[335716053,1724460651405,-2297.96,0.00010999,2]
[335716055,1724460651414,-2298.02,0.00010999,2]
[335716057,1724460651423,-2492.22,0.00010999,2]
[335716059,1724460651434,-2492.22,0.00010999,2]
[335716061,1724460651443,-2492.22,0.00010999,2]
[335716063,1724460651453,-2492.22,0.00010999,2]
[335716065,1724460651462,-2492.22,0.00010999,2]
[335716067,1724460651471,-2492.22,0.00010999,2]
[335716068,1724460651480,-2492.22,0.00010999,2]
[335716070,1724460651489,-2492.22,0.00010999,2]
[335716072,1724460651498,-2492.22,0.00010999,2]
[335716074,1724460651507,-6834.79,0.00010999,2]
[335716076,1724460651517,-2492.44,0.00010999,2]
[335716078,1724460651529,-6834.79,0.00010999,2]
[335716080,1724460651538,-817.42,0.00010999,2]
[335716081,1724460651547,-6834.79,0.00010999,2]
[335716083,1724460651556,-6834.79,0.00010999,2]
[335716085,1724460651567,-817.42,0.00010999,2]
[335716087,1724460651575,-6834.79,0.00010999,2]
[335716089,1724460651585,-817.42,0.00010999,2]
[335716091,1724460651594,-6834.79,0.00010999,2]
[335716093,1724460651605,-817.42,0.00010999,2]
[335716095,1724460651615,-817.42,0.00010999,2]
[335716097,1724460651624,-6834.79,0.00010999,2]
[335716099,1724460651633,-817.42,0.00010999,2]
[335716101,1724460651642,-6834.79,0.00010999,2]
[335716103,1724460651651,-817.42,0.00010999,2]
[335716105,1724460651661,-2120.86563925,0.00010999,2]
[335716107,1724460651672,-375.28134527,0.00010999,2]
[335716109,1724460651683,-4338.64301548,0.00010999,2]
[335716111,1724460651694,-6834.85883527,0.00010999,2]
[335716113,1724460651703,-817.42,0.00010999,2]
[335716115,1724460651712,-817.42,0.00010999,2]
[335716116,1724460651721,-817.5,0.00010999,2]
[335716118,1724460651730,-557.76,0.00010999,2]
[335716120,1724460651739,-557.76,0.00010999,2]
[335716122,1724460651748,-557.76,0.00010999,2]
[335716123,1724460651757,-557.76,0.00010999,2]
[335716124,1724460651766,-557.76,0.00010999,2]
[335716125,1724460651776,-2766.71,0.00010999,2]
[335716126,1724460651785,-557.76,0.00010999,2]
[335716127,1724460651794,-2766.71,0.00010999,2]
[335716128,1724460651804,-2766.71,0.00010999,2]
[335716129,1724460651813,-557.76,0.00010999,2]
[335716130,1724460651822,-2766.71,0.00010999,2]
[335716131,1724460651831,-557.76,0.00010999,2]
[335716132,1724460651840,-557.76,0.00010999,2]
[335716133,1724460651849,-2259.045727,0.00010999,2]
[335716134,1724460651861,-507.664273,0.00010999,2]
[335716135,1724460651870,-557.79,0.00010999,2]
[335716136,1724460651880,-2404.67988281,0.00010999,2]
[335716137,1724460651897,-362.03011719,0.00010999,2]
[335716138,1724460651906,-2766.71,0.00010999,2]
[335716139,1724460651916,-2766.71,0.00010999,2]
[335716140,1724460651925,-2766.71,0.00010999,2]
[335716141,1724460651935,-2766.77,0.00010999,2]
[335716142,1724460651944,-151.0,0.00010999,2]
[335716143,1724460651953,-233710.31824096,0.00011,2]
[335716146,1724460651971,-842.89117371,0.00011,2]
[335716148,1724460651982,-2614.88458858,0.00011,2]
[335716169,1724460652180,-289.10000002,0.00010996,2]
[335716172,1724460652196,-604.32999998,0.00010996,2]
[335716174,1724460652205,-893.43,0.00010996,2]
[335716175,1724460652214,-893.43,0.00010997,2]
[335716177,1724460652223,-893.43,0.00010997,2]
[335716179,1724460652231,-893.43,0.00010997,2]
[335716181,1724460652240,-151.0,0.00010998,2]
[335716183,1724460652249,-5705.03847096,0.00011,2]
[335716185,1724460652263,-1321.69127506,0.00011,2]
[335716214,1724460652554,-387.7317709,0.00010997,2]
[335716217,1724460652570,-321.8,0.00010997,2]
[335716219,1724460652582,-183.8982291,0.00010997,2]
[335716221,1724460652591,-893.43,0.00010997,2]
[335716223,1724460652600,-893.43,0.00010997,2]
[335716225,1724460652610,-893.43,0.00010998,2]
[335716227,1724460652618,-893.43,0.00010998,2]
[335716229,1724460652627,-893.43,0.00010998,2]
[335716231,1724460652636,-893.43,0.00010998,2]
[335716232,1724460652645,-893.43,0.00010998,2]
[335716234,1724460652654,-893.43,0.00010998,2]
[335716236,1724460652663,-130408.05672636,0.00011,2]
[335716239,1724460652683,-893.43,0.00010999,2]
[335716241,1724460652692,-7947.4461939,0.00011,2]
[335717013,1724460729607,447.03,8.376e-05,2]
[335717022,1724460941691,949.88761953,0.00010009,2]
[335717023,1724460984314,187.53627078,0.00010009,2]
[335717024,1724461021888,213.31,9.978e-05,2]
[335717025,1724461143203,591.54134843,0.00010009,2]
[335717026,1724461203611,155.0,0.00010009,2]
[335717038,1724461356184,424.67,8.219e-05,2]
[335717039,1724461416666,150.0,7.204e-05,2]
[335717041,1724461511451,150.0,8.732e-05,2]
[335717042,1724461511473,398.20763933,8.732e-05,2]
[335717043,1724461526561,150.0,9.929e-05,2]
[335717044,1724461526585,79.35,9.929e-05,2]
[335717047,1724461542319,23890.85,9.929e-05,2]
[335717060,1724461641750,150.0,9.935e-05,2]
[335717065,1724461682433,150.0,9.943e-05,2]
[335717066,1724461682454,13548.12,9.943e-05,2]
[335717078,1724461744197,269.44,0.00010009,2]
[335717079,1724461744219,24316.18913432,0.00010009,2]
[335717110,1724461831523,-4005.62,0.00010036,2]
[335717113,1724461831533,-290.3842581,0.00010044,2]
[335717116,1724461831542,-1000.0,0.00010044,2]
[335717118,1724461831551,-500.0,0.00010097,2]
[335717121,1724461831561,-4799.69330693,0.00010097,2]
[335717124,1724461831570,-300.0,0.0001047,2]
[335717127,1724461831579,-300.0,0.0001047,2]
[335717129,1724461831588,-424.67,0.00010473,2]
[335717132,1724461831597,-2402.91404586,0.00010699,2]
[335717135,1724461831606,-1000.0,0.00010786,2]
[335717138,1724461831616,-3212.9046,0.00010786,2]
[335717141,1724461831625,-394.9792,0.00010786,2]
[335717144,1724461831634,-694.89,0.00010798,2]
[335717147,1724461831656,-999.99,0.00010799,2]
[335717149,1724461831665,-332.53510733,0.00010858,2]
[335717151,1724461831674,-155.0,0.00010862,2]
[335717153,1724461831683,-150.0,0.00010885,2]
[335717155,1724461831692,-245000.0,0.00010886,2]
[335717157,1724461831702,-328.1519,0.00010886,2]
[335717158,1724461831711,-299.99,0.00010886,2]
[335717160,1724461831720,-150.99,0.00010886,2]
[335717162,1724461831729,-499.99,0.00010888,2]
[335717163,1724461831739,-9298.74,0.00010888,2]
[335717164,1724461831748,-331.74,0.00010888,2]
[335717165,1724461831757,-201.05454389,0.00010888,2]
[335717166,1724461831766,-9999.99,0.0001089,2]
[335717167,1724461831775,-2343.7105,0.0001089,2]
[335717168,1724461831785,-155.17853723,0.0001089,2]
[335717169,1724461831794,-440.37857631,0.0001089,2]
[335717170,1724461831803,-7500.0,0.00010895,2]
[335717171,1724461831811,-343.73104868,0.00010898,2]
[335717172,1724461831821,-500.0,0.00010898,2]
[335717173,1724461831830,-343.73104866,0.00010899,2]
[335717174,1724461831839,-152.35222135,0.00010899,2]
[335717176,1724461831848,-169.84462218,0.00010899,2]
[335717178,1724461831861,-343.73104866,0.00010899,2]
[335717179,1724461831870,-1293.96377084,0.00010899,2]
[335717180,1724461831879,-158.59702096,0.000109,2]
[335717181,1724461831889,-158.59702094,0.000109,2]
[335717182,1724461831898,-158.59702094,0.000109,2]
[335717183,1724461831907,-158.59702094,0.000109,2]
[335717184,1724461831916,-158.59702094,0.000109,2]
[335717185,1724461831925,-1000.0,0.000109,2]
[335717186,1724461831935,-353.77465098,0.000109,2]
[335717187,1724461831944,-500.0,0.00010958,2]
[335717188,1724461831954,-500.0,0.00010958,2]
[335717189,1724461831964,-500.0,0.00010958,2]
[335717190,1724461831973,-500.0,0.00010958,2]
[335717191,1724461831982,-500.0,0.00010958,2]
[335717192,1724461831991,-500.0,0.00010958,2]
[335717193,1724461832001,-500.0,0.00010958,2]
[335717194,1724461832012,-500.0,0.00010958,2]
[335717195,1724461832021,-500.0,0.00010958,2]
[335717196,1724461832031,-500.0,0.00010958,2]
[335717197,1724461832042,-500.0,0.00010958,2]
[335717198,1724461832051,-500.0,0.00010958,2]
[335717199,1724461832061,-500.0,0.00010958,2]
[335717200,1724461832070,-500.0,0.00010958,2]
[335717201,1724461832079,-500.0,0.00010958,2]
[335717202,1724461832088,-500.0,0.00010958,2]
[335717203,1724461832098,-500.0,0.00010958,2]
[335717204,1724461832109,-500.0,0.00010958,2]
[335717205,1724461832119,-500.0,0.00010958,2]
[335717206,1724461832130,-500.0,0.00010958,2]
[335717207,1724461832140,-500.0,0.00010958,2]
[335717208,1724461832149,-500.0,0.00010958,2]
[335717209,1724461832159,-513.09530022,0.00010958,2]
[335717210,1724461832169,-493.10631822,0.00010958,2]
[335717211,1724461832179,-500.0,0.00010958,2]
[335717212,1724461832190,-5409.47,0.00010958,2]
[335717213,1724461832199,-500.0,0.00010958,2]
[335717214,1724461832209,-500.0,0.00010958,2]
[335717215,1724461832218,-500.0,0.00010958,2]
[335717216,1724461832227,-500.0,0.00010958,2]
[335717217,1724461832236,-500.0,0.00010958,2]
[335717218,1724461832246,-500.0,0.00010958,2]
[335717219,1724461832255,-500.0,0.00010958,2]
[335717220,1724461832264,-500.0,0.00010958,2]
[335717221,1724461832273,-507.44699969,0.00010958,2]
[335717222,1724461832282,-150.0,0.00010958,2]
[335717223,1724461832292,-500.0,0.00010958,2]
[335717224,1724461832302,-500.0,0.00010958,2]
[335717225,1724461832312,-500.0,0.00010958,2]
[335717226,1724461832321,-500.0,0.00010958,2]
[335717227,1724461832330,-500.0,0.00010958,2]
[335717228,1724461832340,-500.0,0.00010958,2]
[335717229,1724461832349,-500.0,0.00010958,2]
[335717230,1724461832359,-500.0,0.00010958,2]
[335717231,1724461832368,-500.0,0.00010958,2]
[335717232,1724461832377,-500.0,0.00010958,2]
[335717233,1724461832387,-500.0,0.00010958,2]
[335717234,1724461832396,-500.0,0.00010958,2]
[335717235,1724461832406,-500.0,0.00010958,2]
[335717236,1724461832415,-500.0,0.00010958,2]
[335717237,1724461832424,-500.0,0.00010958,2]
[335717238,1724461832433,-500.0,0.00010958,2]
[335717239,1724461832442,-500.0,0.00010958,2]
[335717240,1724461832451,-500.0,0.00010958,2]
[335717241,1724461832460,-500.0,0.00010958,2]
[335717242,1724461832470,-500.0,0.00010958,2]
[335717243,1724461832479,-500.0,0.00010958,2]
[335717244,1724461832488,-500.0,0.00010958,2]
[335717245,1724461832496,-669.01,0.00010958,2]
[335717246,1724461832505,-500.0,0.00010958,2]
[335717247,1724461832514,-500.0,0.00010958,2]
[335717248,1724461832524,-500.0,0.00010958,2]
[335717249,1724461832534,-500.0,0.00010958,2]
[335717250,1724461832544,-569.52,0.00010958,2]
[335717251,1724461832554,-500.0,0.00010958,2]
[335717252,1724461832564,-1172.94,0.00010958,2]
[335717253,1724461832573,-500.0,0.00010958,2]
[335717254,1724461832582,-500.0,0.00010958,2]
[335717255,1724461832592,-500.0,0.00010958,2]
[335717256,1724461832601,-500.0,0.00010958,2]
[335717257,1724461832611,-527.2956338,0.00010958,2]
[335717258,1724461832620,-500.0,0.00010958,2]
[335717259,1724461832630,-505.43308464,0.00010958,2]
[335717260,1724461832640,-500.0,0.00010958,2]
[335717261,1724461832650,-500.0,0.00010958,2]
[335717262,1724461832660,-500.0,0.00010958,2]
[335717263,1724461832671,-500.0,0.00010958,2]
[335717264,1724461832680,-500.0,0.00010958,2]
[335717265,1724461832689,-500.0,0.00010958,2]
[335717266,1724461832699,-500.0,0.00010958,2]
[335717267,1724461832710,-508.69751141,0.00010958,2]
[335717268,1724461832719,-500.0,0.00010958,2]
[335717269,1724461832728,-547.33404627,0.00010958,2]
[335717270,1724461832737,-500.0,0.00010958,2]
[335717271,1724461832746,-500.0,0.00010958,2]
[335717272,1724461832754,-869.67,0.00010958,2]
[335717273,1724461832763,-500.0,0.00010958,2]
[335717274,1724461832773,-500.0,0.00010958,2]
[335717275,1724461832782,-500.0,0.00010958,2]
[335717276,1724461832791,-500.0,0.00010958,2]
[335717277,1724461832800,-500.0,0.00010958,2]
[335717278,1724461832809,-500.0,0.00010958,2]
[335717279,1724461832818,-500.0,0.00010958,2]
[335717280,1724461832827,-500.0,0.00010958,2]
[335717281,1724461832836,-500.0,0.00010958,2]
[335717282,1724461832845,-500.0,0.00010958,2]
[335717283,1724461832856,-500.0,0.00010958,2]
[335717284,1724461832869,-500.0,0.00010958,2]
[335717285,1724461832878,-500.0,0.00010958,2]
[335717286,1724461832889,-500.0,0.00010958,2]
[335717287,1724461832899,-500.0,0.00010958,2]
[335717288,1724461832908,-500.0,0.00010958,2]
[335717289,1724461832917,-500.0,0.00010958,2]
[335717290,1724461832926,-500.0,0.00010958,2]
[335717291,1724461832935,-500.0,0.00010958,2]
[335717292,1724461832945,-500.0,0.00010958,2]
[335717293,1724461832955,-500.0,0.00010958,2]
[335717294,1724461832964,-500.0,0.00010958,2]
[335717295,1724461832973,-547.21439727,0.00010958,2]
[335717296,1724461832982,-500.0,0.00010958,2]
[335717297,1724461832991,-500.0,0.00010958,2]
[335717298,1724461833001,-500.0,0.00010958,2]
[335717299,1724461833010,-540.25790729,0.00010958,2]
[335717300,1724461833020,-500.0,0.00010958,2]
[335717301,1724461833030,-805.63,0.00010958,2]
[335717302,1724461833039,-500.12307882,0.00010958,2]
[335717303,1724461833048,-500.0,0.00010958,2]
[335717304,1724461833058,-500.5072846,0.00010958,2]
[335717305,1724461833067,-500.0,0.00010958,2]
[335717306,1724461833077,-500.0,0.00010958,2]
[335717307,1724461833086,-500.0,0.00010958,2]
[335717308,1724461833095,-500.0,0.00010958,2]
[335717309,1724461833105,-500.0,0.00010958,2]
[335717310,1724461833115,-500.0,0.00010958,2]
[335717311,1724461833124,-500.0,0.00010958,2]
[335717312,1724461833133,-503.64,0.00010958,2]
[335717313,1724461833143,-500.0,0.00010958,2]
[335717314,1724461833152,-500.0,0.00010958,2]
[335717315,1724461833162,-500.0,0.00010958,2]
[335717316,1724461833172,-500.0,0.00010958,2]
[335717317,1724461833181,-500.0,0.00010958,2]
[335717318,1724461833191,-500.0,0.00010958,2]
[335717319,1724461833200,-500.0,0.00010958,2]
[335717320,1724461833209,-500.0,0.00010958,2]
[335717321,1724461833219,-500.0,0.00010958,2]
[335717322,1724461833228,-500.0,0.00010958,2]
[335717323,1724461833237,-500.0,0.00010958,2]
[335717324,1724461833247,-500.0,0.00010958,2]
[335717325,1724461833256,-531.58,0.00010958,2]
[335717326,1724461833265,-500.0,0.00010958,2]
[335717327,1724461833274,-500.0837243,0.00010958,2]
[335717328,1724461833284,-500.0,0.00010958,2]
[335717329,1724461833293,-520.43371997,0.00010958,2]
[335717330,1724461833302,-500.0,0.00010958,2]
[335717331,1724461833311,-521.40738143,0.00010958,2]
[335717332,1724461833320,-500.0,0.00010958,2]
[335717333,1724461833329,-500.0,0.00010958,2]
[335717334,1724461833339,-500.0,0.00010958,2]
[335717335,1724461833348,-500.0,0.00010958,2]
[335717336,1724461833357,-500.0,0.00010958,2]
[335717337,1724461833366,-500.0,0.00010958,2]
[335717338,1724461833376,-500.0,0.00010958,2]
[335717339,1724461833385,-500.0,0.00010958,2]
[335717340,1724461833398,-500.0,0.00010958,2]
[335717341,1724461833407,-2025.68,0.00010958,2]
[335717342,1724461833416,-500.0,0.00010958,2]
[335717343,1724461833426,-500.0,0.00010958,2]
[335717344,1724461833435,-500.0,0.00010958,2]
[335717345,1724461833444,-500.0,0.00010958,2]
[335717346,1724461833453,-616.13,0.00010958,2]
[335717347,1724461833462,-500.0,0.00010958,2]
[335717348,1724461833471,-500.0,0.00010958,2]
[335717349,1724461833481,-593.42,0.00010958,2]
[335717350,1724461833490,-500.0,0.00010958,2]
[335717351,1724461833499,-624.33,0.00010958,2]
[335717352,1724461833509,-500.0,0.00010958,2]
[335717353,1724461833518,-1273.83,0.00010958,2]
[335717354,1724461833527,-500.0,0.00010958,2]
[335717355,1724461833536,-500.0,0.00010958,2]
[335717356,1724461833546,-500.0,0.00010958,2]
[335717357,1724461833554,-597.33,0.00010958,2]
[335717358,1724461833564,-500.0,0.00010958,2]
[335717359,1724461833574,-500.0,0.00010958,2]
[335717360,1724461833583,-500.0,0.00010958,2]
[335717361,1724461833592,-500.0,0.00010958,2]
[335717362,1724461833602,-500.0,0.00010958,2]
[335717363,1724461833611,-500.0,0.00010958,2]
[335717364,1724461833621,-500.0,0.00010958,2]
[335717365,1724461833630,-500.0,0.00010958,2]
[335717366,1724461833642,-1793.72,0.00010958,2]
[335717367,1724461833651,-500.0,0.00010958,2]
[335717368,1724461833661,-908.16,0.00010958,2]
[335717369,1724461833670,-500.0,0.00010958,2]
[335717370,1724461833679,-500.0,0.00010958,2]
[335717371,1724461833689,-500.0,0.00010958,2]
[335717372,1724461833698,-1496.47,0.00010958,2]
[335717373,1724461833707,-500.0,0.00010958,2]
[335717374,1724461833717,-500.0,0.00010958,2]
[335717375,1724461833727,-460.0,0.00010958,2]
[335717376,1724461833736,-891.69,0.00010958,2]
[335717377,1724461833745,-500.0,0.00010958,2]
[335717378,1724461833754,-624.43,0.00010958,2]
[335717379,1724461833767,-566.33285271,0.00010958,2]
[335717380,1724461833776,-507.76,0.00010958,2]
[335717381,1724461833785,-765.69,0.00010958,2]
[335717382,1724461833795,-500.0,0.00010958,2]
[335717383,1724461833804,-500.0,0.00010958,2]
[335717384,1724461833814,-500.0,0.00010958,2]
[335717385,1724461833823,-500.0,0.00010958,2]
[335717386,1724461833833,-500.0,0.00010958,2]
[335717387,1724461833842,-500.0,0.00010958,2]
[335717388,1724461833851,-581.52,0.00010958,2]
[335717389,1724461833863,-500.0,0.00010958,2]
[335717390,1724461833873,-500.0,0.00010958,2]
[335717391,1724461833882,-500.0,0.00010958,2]
[335717392,1724461833891,-650.21,0.00010958,2]
[335717393,1724461833901,-1851.71,0.00010958,2]
[335717394,1724461833910,-645.56,0.00010958,2]
[335717395,1724461833919,-500.0,0.00010958,2]
[335717396,1724461833928,-500.0,0.00010958,2]
[335717397,1724461833938,-500.0,0.00010958,2]
[335717398,1724461833947,-1833.01,0.00010958,2]
[335717399,1724461833958,-799.23,0.00010958,2]
[335717400,1724461833967,-633.2,0.00010958,2]
[335717401,1724461833977,-1402.67,0.00010958,2]
[335717402,1724461833986,-509.31,0.00010958,2]
[335717403,1724461833996,-500.0,0.00010958,2]
[335717404,1724461834005,-500.0,0.00010958,2]
[335717405,1724461834015,-614.25158135,0.00010958,2]
[335717406,1724461834025,-500.0,0.00010958,2]
[335717407,1724461834035,-920.41,0.00010958,2]
[335717408,1724461834045,-500.0,0.00010958,2]
[335717409,1724461834054,-500.0,0.00010958,2]
[335717410,1724461834063,-660.78,0.00010958,2]
[335717411,1724461834073,-667.84,0.00010958,2]
[335717412,1724461834082,-500.0,0.00010958,2]
[335717413,1724461834092,-500.0,0.00010958,2]
[335717414,1724461834101,-227.36891378,0.00010958,2]
[335717415,1724461834111,-500.0,0.00010958,2]
[335717416,1724461834120,-500.0,0.00010958,2]
[335717417,1724461834130,-500.0,0.00010958,2]
[335717418,1724461834141,-500.0,0.00010958,2]
[335717419,1724461834150,-3748.01,0.00010958,2]
[335717420,1724461834160,-500.0,0.00010958,2]
[335717421,1724461834169,-500.0,0.00010958,2]
[335717422,1724461834177,-159.94,0.00010959,2]
[335717423,1724461834187,-153.92,0.00010959,2]
[335717424,1724461834196,-150.99,0.00010959,2]
[335717425,1724461834205,-200.0,0.00010973,2]
[335717426,1724461834215,-150.81,0.00010986,2]
[335717427,1724461834224,-500.0,0.00010994,2]
[335717428,1724461834233,-500.0,0.00010994,2]
[335717429,1724461834241,-500.0,0.00010994,2]
[335717430,1724461834251,-500.0,0.00010994,2]
[335717431,1724461834393,-500.0,0.00010994,2]
[335717432,1724461834403,-1793.72,0.00010994,2]
[335717433,1724461834413,-500.0,0.00010994,2]
[335717434,1724461834422,-891.69,0.00010994,2]
[335717435,1724461834432,-507.76,0.00010994,2]
[335717436,1724461834441,-500.0,0.00010994,2]
[335717437,1724461834450,-581.52,0.00010994,2]
[335717438,1724461834459,-645.56,0.00010994,2]
[335717439,1724461834468,-1833.01,0.00010994,2]
[335717440,1724461834478,-633.2,0.00010994,2]
[335717441,1724461834487,-500.0,0.00010994,2]
[335717442,1724461834496,-500.0,0.00010994,2]
[335717443,1724461834505,-500.0,0.00010994,2]
[335717444,1724461834514,-500.0,0.00010994,2]
[335717445,1724461834523,-500.0,0.00010994,2]
[335717446,1724461834533,-500.0,0.00010994,2]
[335717447,1724461834542,-3748.01,0.00010994,2]
[335717448,1724461834551,-500.0,0.00010994,2]
[335717449,1724461834561,-500.0,0.00010994,2]
[335717450,1724461834570,-500.0,0.00010995,2]
[335717451,1724461834579,-500.0,0.00010995,2]
[335717452,1724461834588,-500.0,0.00010995,2]
[335717453,1724461834597,-534.62798469,0.00010995,2]
[335717454,1724461834607,-500.0,0.00010995,2]
[335717455,1724461834616,-500.0,0.00010995,2]
[335717456,1724461834625,-500.0,0.00010995,2]
[335717457,1724461834634,-500.0,0.00010995,2]
[335717458,1724461834644,-500.0,0.00010995,2]